fUSD/lending_fUSD_20260621
["ID","MTS","AMOUNT","RATE_DAILY","PERIOD"]
[425841554,1781973048000,-150.0,0.00029869,30]
[425841556,1781973048000,-163.63698229,0.0002988,2]
[425841555,1781973048000,-3273.3742947,0.00029877,2]
[425841550,1781973048000,-445.0,0.00029807,2]
[425841551,1781973048000,-303.672297,0.00029814,7]
[425841549,1781973048000,-170.7112702,0.000298,2]
[425841552,1781973048000,-394.0,0.00029832,2]
[425841548,1781973048000,-150.0,0.00029795,2]
[425841553,1781973048000,-925.9638029,0.00029854,2]
[425841558,1781973048000,-2609.82923724,0.0002988,2]
[425841602,1781973049000,-677.27224157,0.00029979,10]
[425841594,1781973049000,-150.0,0.00029973,30]
[425841601,1781973049000,-300.0,0.00029979,10]
[425841597,1781973049000,-150.0,0.00029973,30]
[425841598,1781973049000,-151.0,0.00029977,7]
[425841592,1781973049000,-150.0,0.00029973,30]
[425841589,1781973049000,-2000.0,0.0002997,2]
[425841590,1781973049000,-2000.0,0.0002997,2]
[425841595,1781973049000,-150.0,0.00029973,30]
[425841593,1781973049000,-150.0,0.00029973,30]
[425841591,1781973049000,-2000.0,0.0002997,2]
[425841605,1781973049000,-224900.86145364,0.0002998,7]
[425841596,1781973049000,-150.0,0.00029973,30]
[425841599,1781973049000,-151.0,0.00029977,7]
[425841600,1781973049000,-300.0,0.00029979,10]
[425841606,1781973049000,-530.03845445,0.0002998,7]
[425841617,1781973049000,-164.19,0.0002815,7]
[425841618,1781973049000,-1196.12,0.0002998,7]
[425841614,1781973049000,-1298.99566407,0.0002998,7]
[425841615,1781973049000,-543.95104191,0.0002998,7]
[425841616,1781973049000,-544.06571002,0.0002998,7]
[425841611,1781973049000,-3543.96811298,0.0002998,7]
[425841613,1781973049000,-35416.76081189,0.0002998,7]
[425841610,1781973049000,-164.19,0.00027819,30]
[425841609,1781973049000,-2174.72423765,0.0002998,7]
[425841608,1781973049000,-2207.09221064,0.0002998,7]
[425841607,1781973049000,-1085.57166633,0.0002998,7]
[425841604,1781973049000,-2000.0,0.00029979,15]
[425841603,1781973049000,-2000.0,0.00029979,7]
[425841612,1781973049000,-64.24282082,0.0002998,7]
[425841622,1781973050000,-164.19,0.00028481,2]
[425841619,1781973050000,-745.97410842,0.00022007,2]
[425841621,1781973050000,-169.89,0.00027875,2]
[425841624,1781973050000,-169.89,0.00028553,7]
[425841627,1781973050000,-500.0,0.00029882,30]
[425841625,1781973050000,-164.19,0.00028812,30]
[425841628,1781973050000,-430.82461602,0.00029979,30]
[425841620,1781973050000,-505.0,0.00027137,2]
[425841626,1781973050000,-505.0,0.00029848,4]
[425841629,1781973050000,-25672.27098408,0.0002998,7]
[425841623,1781973050000,-505.0,0.00028492,3]
[425841633,1781973051000,-1171.69968689,0.0002998,7]
[425841632,1781973051000,-152.9,0.00024658,2]
[425841631,1781973051000,-20622.25908784,0.0002998,7]
[425841630,1781973051000,-169.89,0.00029232,30]
[425841634,1781973098000,212.539835,0.000294,120]
[425841635,1781973126000,500.0,0.00014999,2]
[425841636,1781973379000,200.0,0.00030136,120]
[425841638,1781973394000,500.0,0.00014756,2]
[425841639,1781973395000,500.0,0.00014756,2]
[425841640,1781973397000,500.0,0.00014482,2]
[425841641,1781973397000,500.0,0.00014482,2]
[425841642,1781973398000,678.587,0.00014482,2]
[425841643,1781973405000,2955.358459,0.00014955,2]
[425841646,1781973450000,500.0,0.00014208,2]
[425841645,1781973450000,500.0,0.00014208,2]
[425841647,1781973451000,869.0,0.00014208,2]
[425841648,1781973453000,500.0,0.00013934,2]
[425841649,1781973456000,500.0,0.0001366,2]
[425841653,1781973824000,250.0,0.00014,2]
[425841654,1781973925000,151.0,0.00014713,2]
[425841655,1781973929000,151.0,0.00014713,2]
[425841656,1781973932000,151.0,0.00014713,2]
[425841657,1781973936000,151.0,0.00014713,2]
[425841658,1781974032000,287.64,0.00025605,120]
[425841659,1781974070000,200.0,0.00014761,2]
[425841665,1781974231000,-89.08118645,0.00015206,2]
[425841664,1781974231000,-179.27067934,0.00015107,2]
[425841663,1781974231000,-201.99958233,0.00015107,2]
[425841677,1781974232000,-500.0,0.00015206,2]
[425841681,1781974232000,-500.0,0.00015206,2]
[425841675,1781974232000,-500.0,0.00015206,2]
[425841679,1781974232000,-500.0,0.00015206,2]
[425841676,1781974232000,-500.0,0.00015206,2]
[425841678,1781974232000,-500.0,0.00015206,2]
[425841674,1781974232000,-74.10318657,0.00015206,2]
[425841680,1781974232000,-270.48677611,0.00015206,2]
[425841672,1781974232000,-59.3668157,0.00015206,2]
[425841671,1781974232000,-440.6331843,0.00015206,2]
[425841670,1781974232000,-60.91881355,0.00015206,2]
[425841668,1781974232000,-500.0,0.00015206,2]
[425841667,1781974232000,-500.0,0.00015206,2]
[425841669,1781974232000,-439.08118645,0.00015206,2]
[425841666,1781974232000,-410.91881355,0.00015206,2]
[425841673,1781974232000,-425.89681343,0.00015206,2]
[425841682,1781974232000,-500.0,0.00015206,2]
[425841691,1781974232000,-500.0,0.00015206,2]
[425841683,1781974232000,-500.0,0.00015206,2]
[425841685,1781974232000,-500.0,0.00015206,2]
[425841717,1781974232000,-688.02995528,0.00016438,2]
[425841713,1781974232000,-397.0,0.00016332,2]
[425841711,1781974232000,-5362.73981197,0.00016302,2]
[425841707,1781974232000,-281.1659605,0.00015221,2]
[425841709,1781974232000,-200.0,0.00015255,2]
[425841706,1781974232000,-600.0,0.00015221,2]
[425841702,1781974232000,-150.26211441,0.00015217,2]
[425841715,1781974232000,-385.4,0.00016438,2]
[425841700,1781974232000,-600.0,0.00015209,2]
[425841701,1781974232000,-200.0,0.00015211,2]
[425841698,1781974232000,-300.0,0.00015207,2]
[425841695,1781974232000,-150.0,0.00015207,2]
[425841693,1781974232000,-500.0,0.00015206,2]
[425841689,1781974232000,-500.0,0.00015206,2]
[425841687,1781974232000,-500.0,0.00015206,2]
[425841704,1781974232000,-600.0,0.00015221,2]
[425841780,1781974238000,-588.95474348,0.00016726,2]
[425841782,1781974238000,-500.0,0.00016726,2]
[425841784,1781974238000,-250.0,0.00016726,2]
[425841785,1781974238000,-600.0,0.00016726,2]
[425841797,1781974238000,-287.64,0.0001707,2]
[425841799,1781974238000,-166.66,0.00017086,2]
[425841788,1781974238000,-179.27067932,0.00016853,2]
[425841786,1781974238000,-252.55,0.0001674,7]
[425841801,1781974238000,-415.85945736,0.00017086,2]
[425841795,1781974238000,-602.65,0.00016932,2]
[425841793,1781974238000,-563.07,0.00016931,2]
[425841791,1781974238000,-969.11,0.00016931,2]
[425841806,1781974238000,-382.23,0.0001712,2]
[425841778,1781974238000,-200.0,0.00016618,2]
[425841803,1781974238000,-162.81,0.00017106,2]
[425841776,1781974238000,-300.0,0.00016618,2]
[425841770,1781974238000,-150.0,0.00016567,2]
[425841777,1781974238000,-250.0,0.00016618,2]
[425841761,1781974238000,-311.05004472,0.00016438,2]
[425841763,1781974238000,-540.97,0.00016438,2]
[425841762,1781974238000,-580.49,0.00016438,2]
[425841764,1781974238000,-659.45,0.00016438,2]
[425841765,1781974238000,-621.3,0.00016438,2]
[425841766,1781974238000,-271.0,0.00016438,2]
[425841768,1781974238000,-361.05636777,0.00016438,2]
[425841781,1781974238000,-207.08937098,0.00016726,2]
[425841769,1781974238000,-152.0,0.00016438,2]
[425841808,1781974238000,-1500.0,0.00017171,2]
[425841772,1781974238000,-5849.10829912,0.00016584,2]
[425841771,1781974238000,-894.75347849,0.00016584,2]
[425841773,1781974238000,-10010.15062239,0.00016584,2]
[425841774,1781974238000,-186.47678224,0.00016584,2]
[425841775,1781974238000,-545.41,0.00016592,2]
[425841779,1781974238000,-200.0,0.00016618,2]
[425841767,1781974238000,-500.0,0.00016438,2]
[425841810,1781974238000,-415.85945736,0.00017186,2]
[425841783,1781974238000,-200.0,0.00016726,2]
[425841812,1781974238000,-500.0,0.00017238,2]
[425841850,1781974238000,-382.69,0.00018134,2]
[425841854,1781974238000,-500.0,0.00018199,2]
[425841852,1781974238000,-500.0,0.00018199,2]
[425841853,1781974238000,-500.0,0.00018199,2]
[425841858,1781974238000,-385.4,0.0001841,2]
[425841856,1781974238000,-1165.556697,0.00018294,2]
[425841860,1781974238000,-166.66,0.00018524,2]
[425841855,1781974238000,-1613.0535,0.00018267,2]
[425841859,1781974238000,-1783.53,0.00018493,2]
[425841861,1781974238000,-382.69,0.00018565,2]
[425841862,1781974238000,-179.27067932,0.00018599,2]
[425841863,1781974238000,-2183.97937817,0.00018696,2]
[425841865,1781974238000,-45270.07521459,0.000187,2]
[425841864,1781974238000,-5000.0,0.00018699,5]
[425841816,1781974238000,-415.85945736,0.00017286,2]
[425841851,1781974238000,-166.66,0.00018165,2]
[425841849,1781974238000,-279.73608303,0.00018098,2]
[425841857,1781974238000,-2538.19,0.000184,2]
[425841845,1781974238000,-150.0,0.00018098,2]
[425841814,1781974238000,-382.69,0.0001727,2]
[425841848,1781974238000,-150.0,0.00018098,2]
[425841823,1781974238000,-166.66,0.00017445,2]
[425841821,1781974238000,-200.0,0.00017364,2]
[425841827,1781974238000,-382.69,0.00017702,2]
[425841825,1781974238000,-2000.0,0.00017645,2]
[425841829,1781974238000,-1555.5,0.00017719,2]
[425841834,1781974238000,-166.66,0.00017805,2]
[425841819,1781974238000,-353.45,0.0001731,2]
[425841844,1781974238000,-1970.1191707,0.00017843,2]
[425841836,1781974238000,-160.0,0.00017814,2]
[425841838,1781974238000,-160.0,0.00017815,2]
[425841841,1781974238000,-160.0,0.00017816,2]
[425841843,1781974238000,-216.28381402,0.00017816,2]
[425841847,1781974238000,-150.0,0.00018098,2]
[425841832,1781974238000,-153.61758556,0.000178,2]
[425841846,1781974238000,-150.0,0.00018098,2]
[425841867,1781974239000,-1653.86808024,0.000187,2]
[425841866,1781974239000,-372.73608226,0.000187,2]
[425841906,1781974240000,-500.0,0.00019899,2]
[425841902,1781974240000,-500.0,0.00019899,2]
[425841900,1781974240000,-500.0,0.00019899,2]
[425841897,1781974240000,-500.0,0.00019899,2]
[425841899,1781974240000,-500.0,0.00019899,2]
[425841896,1781974240000,-500.0,0.00019899,2]
[425841908,1781974240000,-500.0,0.00019899,2]
[425841898,1781974240000,-500.0,0.00019899,2]
[425841901,1781974240000,-500.0,0.00019899,2]
[425841912,1781974240000,-1798.80895522,0.00019911,2]
[425841905,1781974240000,-500.0,0.00019899,2]
[425841904,1781974240000,-500.0,0.00019899,2]
[425841903,1781974240000,-500.0,0.00019899,2]
[425841910,1781974240000,-321.62143772,0.00019899,2]
[425841911,1781974240000,-1073.53516652,0.000199,2]
[425841909,1781974240000,-500.0,0.00019899,2]
[425841913,1781974240000,-2183.97937808,0.00019941,2]
[425841895,1781974240000,-500.0,0.00019899,2]
[425841907,1781974240000,-500.0,0.00019899,2]
[425841890,1781974240000,-3093.5853,0.000198,2]
[425841873,1781974240000,-500729.10862291,0.000187,2]
[425841893,1781974240000,-8985.56995193,0.000198,2]
[425841915,1781974240000,-23954.8,0.0002,2]
[425841874,1781974240000,-440.17698147,0.00018797,2]
[425841877,1781974240000,-166.66,0.00018884,2]
[425841876,1781974240000,-1672.7364795,0.00018815,2]
[425841878,1781974240000,-382.69,0.00018997,2]
[425841875,1781974240000,-1073.53516652,0.000188,2]
[425841880,1781974240000,-150.0,0.00019,2]
[425841879,1781974240000,-1073.53516652,0.00019,2]
[425841881,1781974240000,-1073.53516652,0.000192,2]
[425841882,1781974240000,-287.64,0.00019204,2]
[425841883,1781974240000,-161.73255609,0.00019238,2]
[425841884,1781974240000,-1073.53516652,0.000193,2]
[425841886,1781974240000,-1734.62772924,0.00019363,2]
[425841885,1781974240000,-4999.99,0.00019339,2]
[425841888,1781974240000,-237.0,0.000195,2]
[425841889,1781974240000,-1073.53516652,0.000197,2]
[425841887,1781974240000,-1073.53516652,0.000195,2]
[425841891,1781974240000,-9789.0566,0.000198,2]
[425841892,1781974240000,-211.18098918,0.000198,2]
[425841894,1781974240000,-151.0,0.00019897,2]
[425841914,1781974240000,-178.0,0.0002,2]
[425841945,1781974240000,-150.0,0.0002058,2]
[425841917,1781974240000,-184.0,0.0002,2]
[425841941,1781974240000,-1865.36488656,0.00020459,2]
[425841939,1781974240000,-385.4,0.00020381,2]
[425841943,1781974240000,-150.0,0.000205,2]
[425841946,1781974240000,-150.0,0.0002058,2]
[425841962,1781974240000,-171.0,0.00021,2]
[425841947,1781974240000,-150.0,0.0002058,2]
[425841952,1781974240000,-8985.56995184,0.00020922,2]
[425841948,1781974240000,-150.0,0.0002058,2]
[425841944,1781974240000,-150.0,0.0002058,2]
[425841950,1781974240000,-1113.82364118,0.0002067,7]
[425841949,1781974240000,-288.49280492,0.0002058,2]
[425841955,1781974240000,-184.0,0.00021,2]
[425841954,1781974240000,-178.0,0.00021,2]
[425841957,1781974240000,-603.0,0.00021,2]
[425841956,1781974240000,-154.0,0.00021,2]
[425841959,1781974240000,-542.0,0.00021,2]
[425841961,1781974240000,-153.0,0.00021,2]
[425841916,1781974240000,-15557.46,0.0002,2]
[425841951,1781974240000,-182.481171,0.00020848,2]
[425841942,1781974240000,-1073.53516652,0.000205,2]
[425841953,1781974240000,-860.95564249,0.00021,2]
[425841937,1781974240000,-199.5,0.00020207,2]
[425841940,1781974240000,-2000.0,0.00020448,2]
[425841918,1781974240000,-154.0,0.0002,2]
[425841919,1781974240000,-603.0,0.0002,2]
[425841920,1781974240000,-542.0,0.0002,2]
[425841921,1781974240000,-153.0,0.0002,2]
[425841922,1781974240000,-156.0,0.0002,2]
[425841924,1781974240000,-162.0,0.0002,2]
[425841928,1781974240000,-215.0,0.0002,2]
[425841926,1781974240000,-164.0,0.0002,2]
[425841923,1781974240000,-315.0,0.0002,2]
[425841929,1781974240000,-3998.89,0.0002,2]
[425841931,1781974240000,-1073.53516652,0.000201,2]
[425841933,1781974240000,-150.99,0.00020145,2]
[425841932,1781974240000,-499.99,0.00020145,2]
[425841930,1781974240000,-500.0,0.00020041,2]
[425841935,1781974240000,-6578.92,0.00020145,2]
[425841934,1781974240000,-9999.99,0.00020145,2]
[425841936,1781974240000,-299.99,0.00020145,7]
[425841927,1781974240000,-745.0,0.0002,2]
[425841938,1781974240000,-1073.53516652,0.000203,2]
[425842004,1781974241000,-500.0,0.00022103,2]
[425842003,1781974241000,-500.0,0.00022103,2]
[425842001,1781974241000,-500.0,0.00022103,2]
[425842000,1781974241000,-500.0,0.00022103,2]
[425841997,1781974241000,-8985.56995184,0.00022044,2]
[425841995,1781974241000,-150.0,0.00022,2]
[425841996,1781974241000,-845.46,0.00022,2]
[425841998,1781974241000,-500.0,0.00022103,2]
[425841993,1781974241000,-745.0,0.00022,2]
[425842002,1781974241000,-500.0,0.00022103,2]
[425841994,1781974241000,-215.0,0.00022,2]
[425841999,1781974241000,-500.0,0.00022103,2]
[425842006,1781974241000,-500.0,0.00022103,2]
[425842017,1781974241000,-151.0,0.00022103,2]
[425842005,1781974241000,-500.0,0.00022103,2]
[425842008,1781974241000,-500.0,0.00022103,2]
[425842009,1781974241000,-200.0,0.00022103,2]
[425842011,1781974241000,-151.0,0.00022103,2]
[425842012,1781974241000,-151.0,0.00022103,2]
[425842013,1781974241000,-151.0,0.00022103,2]
[425842014,1781974241000,-151.0,0.00022103,2]
[425842016,1781974241000,-151.0,0.00022103,2]
[425842015,1781974241000,-151.0,0.00022103,2]
[425842019,1781974241000,-151.0,0.00022103,2]
[425842022,1781974241000,-151.0,0.00022103,2]
[425841991,1781974241000,-162.0,0.00022,2]
[425842007,1781974241000,-500.0,0.00022103,2]
[425841992,1781974241000,-164.0,0.00022,2]
[425841971,1781974241000,-860.95564249,0.000212,2]
[425841988,1781974241000,-542.0,0.00022,2]
[425841965,1781974241000,-164.0,0.00021,2]
[425841963,1781974241000,-315.0,0.00021,2]
[425841969,1781974241000,-1934.38338736,0.00021007,2]
[425841967,1781974241000,-215.0,0.00021,2]
[425841968,1781974241000,-150.0,0.00021,2]
[425841964,1781974241000,-162.0,0.00021,2]
[425841966,1781974241000,-745.0,0.00021,2]
[425842021,1781974241000,-151.0,0.00022103,2]
[425841970,1781974241000,-2183.97937808,0.00021186,2]
[425841972,1781974241000,-821.47,0.00021273,2]
[425841973,1781974241000,-801.82,0.00021273,2]
[425841977,1781974241000,-2005.9555727,0.00021555,2]
[425841990,1781974241000,-315.0,0.00022,2]
[425841976,1781974241000,-860.95564249,0.000214,2]
[425841974,1781974241000,-16698.41,0.00021273,2]
[425841979,1781974241000,-212.539835,0.00021661,2]
[425841978,1781974241000,-860.95564249,0.000216,2]
[425841981,1781974241000,-860.95564249,0.000219,2]
[425841980,1781974241000,-1783.53,0.00021836,2]
[425841982,1781974241000,-5000.0,0.00021918,2]
[425841985,1781974241000,-184.0,0.00022,2]
[425841984,1781974241000,-178.0,0.00022,2]
[425841983,1781974241000,-158.57,0.00021918,2]
[425841987,1781974241000,-603.0,0.00022,2]
[425841989,1781974241000,-153.0,0.00022,2]
[425841986,1781974241000,-154.0,0.00022,2]
[425841975,1781974241000,-287.64,0.00021338,2]
[425842018,1781974241000,-151.0,0.00022103,2]
[425842010,1781974241000,-151.0,0.00022103,2]
[425842024,1781974241000,-151.0,0.00022103,2]
[425842055,1781974241000,-1148.61238259,0.00022595,2]
[425842054,1781974241000,-1107.63007,0.00022595,2]
[425842056,1781974241000,-578.20924308,0.00022595,2]
[425842059,1781974241000,-1235.18214925,0.00022595,2]
[425842060,1781974241000,-1280.88388877,0.00022595,2]
[425842064,1781974241000,-1165.20746569,0.00022595,2]
[425842061,1781974241000,-156.84726257,0.00022595,2]
[425842057,1781974241000,-174.61919141,0.00022595,2]
[425842062,1781974241000,-721.12765534,0.00022595,2]
[425842063,1781974241000,-5503.77751861,0.00022595,2]
[425842058,1781974241000,-1191.11104074,0.00022595,2]
[425842066,1781974241000,-151.0,0.00022595,2]
[425842065,1781974241000,-500.0,0.00022595,2]
[425842067,1781974241000,-500.0,0.00022595,2]
[425842069,1781974241000,-209.40437684,0.00022595,2]
[425842068,1781974241000,-500.0,0.00022595,2]
[425842070,1781974241000,-152.65821072,0.00022595,2]
[425842072,1781974241000,-152.0,0.00022595,2]
[425842071,1781974241000,-500.0,0.00022595,2]
[425842074,1781974241000,-152.0,0.00022595,2]
[425842073,1781974241000,-500.0,0.00022595,2]
[425842077,1781974241000,-500.0,0.00022595,2]
[425842075,1781974241000,-500.0,0.00022595,2]
[425842076,1781974241000,-152.0,0.00022595,2]
[425842079,1781974241000,-500.0,0.00022595,2]
[425842020,1781974241000,-151.0,0.00022103,2]
[425842080,1781974241000,-152.0,0.00022595,2]
[425842053,1781974241000,-1068.11,0.00022595,2]
[425842052,1781974241000,-1030.0,0.00022595,2]
[425842078,1781974241000,-152.0,0.00022595,2]
[425842044,1781974241000,-5185.44686304,0.0002217,7]
[425842051,1781974241000,-441.10788551,0.00022488,2]
[425842026,1781974241000,-151.0,0.00022103,2]
[425842023,1781974241000,-2080.17592889,0.00022103,2]
[425842025,1781974241000,-151.0,0.00022103,2]
[425842028,1781974241000,-151.0,0.00022103,2]
[425842027,1781974241000,-151.0,0.00022103,2]
[425842029,1781974241000,-151.0,0.00022103,2]
[425842030,1781974241000,-151.0,0.00022103,2]
[425842034,1781974241000,-151.0,0.00022103,2]
[425842036,1781974241000,-151.0,0.00022103,2]
[425842039,1781974241000,-151.0,0.00022103,2]
[425842032,1781974241000,-151.0,0.00022103,2]
[425842037,1781974241000,-151.0,0.00022103,2]
[425842031,1781974241000,-151.0,0.00022103,2]
[425842038,1781974241000,-151.0,0.00022103,2]
[425842035,1781974241000,-151.0,0.00022103,2]
[425842049,1781974241000,-337.89946006,0.00022438,15]
[425842047,1781974241000,-385.4,0.00022353,2]
[425842046,1781974241000,-10495.6533,0.0002217,7]
[425842048,1781974241000,-2183.97937808,0.00022431,2]
[425842045,1781974241000,-7757.1183859,0.0002217,7]
[425842042,1781974241000,-151.0,0.00022103,2]
[425842050,1781974241000,-642.24,0.00022466,2]
[425842040,1781974241000,-151.0,0.00022103,2]
[425842041,1781974241000,-151.0,0.00022103,2]
[425842033,1781974241000,-151.0,0.00022103,2]
[425842043,1781974241000,-2939.39821147,0.0002217,7]
[425842123,1781974242000,-164.71427194,0.00023143,2]
[425842120,1781974242000,-161.7325561,0.0002306,2]
[425842118,1781974242000,-2449.0,0.00023,2]
[425842124,1781974242000,-152.65821072,0.00023143,2]
[425842106,1781974242000,-178.0,0.00023,2]
[425842115,1781974242000,-745.0,0.00023,2]
[425842113,1781974242000,-162.0,0.00023,2]
[425842114,1781974242000,-164.0,0.00023,2]
[425842112,1781974242000,-315.0,0.00023,2]
[425842125,1781974242000,-151.0,0.00023145,2]
[425842116,1781974242000,-215.0,0.00023,2]
[425842119,1781974242000,-151.0,0.00023035,2]
[425842135,1781974242000,-2183.97937808,0.00023676,2]
[425842117,1781974242000,-150.0,0.00023,2]
[425842121,1781974242000,-151.0,0.0002309,2]
[425842126,1781974242000,-5848.61294934,0.00023167,2]
[425842127,1781974242000,-3136.9570025,0.00023167,2]
[425842128,1781974242000,-200.0,0.00023199,2]
[425842129,1781974242000,-151.0,0.00023199,2]
[425842130,1781974242000,-2236.95670847,0.00023199,2]
[425842133,1781974242000,-250.0,0.00023288,2]
[425842132,1781974242000,-2000.0,0.0002325,2]
[425842134,1781974242000,-287.64,0.00023471,2]
[425842105,1781974242000,-151.0,0.0002298,2]
[425842136,1781974242000,-187.78006524,0.00023691,2]
[425842122,1781974242000,-181.08010149,0.00023143,2]
[425842110,1781974242000,-542.0,0.00023,2]
[425842097,1781974242000,-151.0,0.00022705,2]
[425842104,1781974242000,-151.0,0.00022925,2]
[425842137,1781974242000,-152.65821072,0.00023691,2]
[425842081,1781974242000,-500.0,0.00022595,2]
[425842088,1781974242000,-152.0,0.00022595,2]
[425842085,1781974242000,-152.0,0.00022595,2]
[425842084,1781974242000,-152.0,0.00022595,2]
[425842082,1781974242000,-152.0,0.00022595,2]
[425842083,1781974242000,-500.0,0.00022595,2]
[425842089,1781974242000,-152.0,0.00022595,2]
[425842087,1781974242000,-152.0,0.00022595,2]
[425842086,1781974242000,-500.0,0.00022595,2]
[425842092,1781974242000,-151.0,0.00022651,2]
[425842091,1781974242000,-200.0,0.00022651,2]
[425842108,1781974242000,-154.0,0.00023,2]
[425842090,1781974242000,-151.0,0.0002265,2]
[425842093,1781974242000,-2157.14243826,0.00022651,2]
[425842100,1781974242000,-151.0,0.0002276,2]
[425842095,1781974242000,-183.69325325,0.00022694,2]
[425842096,1781974242000,-179.22637113,0.00022694,2]
[425842099,1781974242000,-500.0,0.00022718,2]
[425842098,1781974242000,-443.96987682,0.00022718,2]
[425842101,1781974242000,-151.0,0.00022815,2]
[425842102,1781974242000,-500.0,0.00022843,2]
[425842103,1781974242000,-151.0,0.0002287,2]
[425842111,1781974242000,-153.0,0.00023,2]
[425842109,1781974242000,-603.0,0.00023,2]
[425842107,1781974242000,-184.0,0.00023,2]
[425842094,1781974242000,-821.47,0.00022691,2]
[425842144,1781974242000,-382.23,0.00023968,2]
[425842131,1781974242000,-1783.53,0.00023205,2]
[425842142,1781974242000,-2319.72410669,0.00023747,2]
[425842170,1781974242000,-177.68,0.00024658,2]
[425842173,1781974242000,-152.65821072,0.00024787,2]
[425842184,1781974242000,-500.0,0.00024896,2]
[425842172,1781974242000,-201.93286098,0.00024787,2]
[425842175,1781974242000,-2494.55939288,0.00024843,2]
[425842176,1781974242000,-283.18188354,0.00024896,2]
[425842174,1781974242000,-200.0,0.00024843,2]
[425842180,1781974242000,-500.0,0.00024896,2]
[425842178,1781974242000,-500.0,0.00024896,2]
[425842179,1781974242000,-500.0,0.00024896,2]
[425842177,1781974242000,-500.0,0.00024896,2]
[425842182,1781974242000,-500.0,0.00024896,2]
[425842171,1781974242000,-179.44,0.00024658,2]
[425842189,1781974242000,-2183.97937808,0.0002492,2]
[425842193,1781974242000,-201.0,0.00025,2]
[425842191,1781974242000,-189.0,0.00025,2]
[425842196,1781974242000,-608.0,0.00025,2]
[425842199,1781974242000,-555.73608226,0.00025,2]
[425842205,1781974242000,-166.0,0.00025,2]
[425842208,1781974242000,-750.0,0.00025,2]
[425842201,1781974242000,-170.0,0.00025,2]
[425842203,1781974242000,-322.0,0.00025,2]
[425842207,1781974242000,-183.0,0.00025,2]
[425842210,1781974242000,-150.0,0.00025,2]
[425842211,1781974242000,-151.5,0.00025207,2]
[425842138,1781974242000,-1511.42913464,0.00023732,2]
[425842186,1781974242000,-211.18098917,0.0002492,2]
[425842163,1781974242000,-385.4,0.00024324,2]
[425842209,1781974242000,-220.0,0.00025,2]
[425842166,1781974242000,-845.46,0.00024637,7]
[425842169,1781974242000,-183.33,0.00024658,2]
[425842139,1781974242000,-901.15904144,0.00023732,2]
[425842145,1781974242000,-178.0,0.00024,2]
[425842140,1781974242000,-200.0,0.00023747,2]
[425842143,1781974242000,-177.0,0.00023766,10]
[425842146,1781974242000,-184.0,0.00024,2]
[425842147,1781974242000,-169.0,0.00024,2]
[425842148,1781974242000,-603.0,0.00024,2]
[425842151,1781974242000,-315.0,0.00024,2]
[425842149,1781974242000,-542.0,0.00024,2]
[425842150,1781974242000,-153.0,0.00024,2]
[425842154,1781974242000,-745.0,0.00024,2]
[425842152,1781974242000,-162.0,0.00024,2]
[425842141,1781974242000,-151.0,0.00023747,2]
[425842156,1781974242000,-150.0,0.00024,2]